fUSD/lending_fUSD_20241123
["ID","MTS","AMOUNT","RATE_DAILY","PERIOD"]
[343065791,1732321843409,-1283.12,0.00065999,120]
[343065793,1732321843418,-1283.12,0.00065999,120]
[343065795,1732321843427,-1283.12,0.00065999,120]
[343065797,1732321843436,-1283.12,0.00065999,120]
[343065799,1732321843446,-1283.12,0.00065999,120]
[343065801,1732321843455,-1283.12,0.00065999,120]
[343065803,1732321843464,-1283.12,0.00065999,120]
[343065805,1732321843474,-1283.12,0.00065999,120]
[343065807,1732321843483,-1283.12,0.00065999,120]
[343065809,1732321843492,-1283.12,0.00065999,120]
[343065811,1732321843501,-955.97,0.00065999,120]
[343065813,1732321843510,-1283.12,0.00065999,120]
[343065814,1732321843519,-955.97,0.00065999,120]
[343065815,1732321843528,-1283.12,0.00065999,120]
[343065816,1732321843537,-955.97,0.00065999,120]
[343065817,1732321843548,-1283.12,0.00065999,120]
[343065818,1732321843557,-955.97,0.00065999,120]
[343065819,1732321843566,-955.97,0.00065999,120]
[343065820,1732321843575,-955.97,0.00065999,120]
[343065821,1732321843584,-955.97,0.00065999,120]
[343065822,1732321843593,-955.97,0.00065999,120]
[343065823,1732321843607,-955.97,0.00065999,120]
[343065824,1732321843616,-955.97,0.00065999,120]
[343065826,1732321843625,-955.97,0.00065999,120]
[343065828,1732321843634,-955.97,0.00065999,120]
[343065830,1732321843643,-955.97,0.00065999,120]
[343065831,1732321843651,-955.97,0.00065999,120]
[343065832,1732321843660,-955.97,0.00065999,120]
[343065833,1732321843669,-955.97,0.00065999,120]
[343065834,1732321843678,-955.97,0.00065999,120]
[343065835,1732321843687,-955.97,0.00065999,120]
[343065836,1732321843696,-955.97,0.00065999,120]
[343065837,1732321843705,-955.97,0.00065999,120]
[343065838,1732321843715,-955.97,0.00065999,120]
[343065839,1732321843724,-955.97,0.00065999,120]
[343065840,1732321843733,-1276.2,0.00065999,120]
[343065841,1732321843742,-1276.2,0.00065999,120]
[343065842,1732321843752,-955.97,0.00065999,120]
[343065843,1732321843760,-1276.2,0.00065999,120]
[343065844,1732321843769,-956.17,0.00065999,120]
[343065845,1732321843778,-1276.2,0.00065999,120]
[343065846,1732321843787,-1276.2,0.00065999,120]
[343065847,1732321843796,-1276.2,0.00065999,120]
[343065848,1732321843807,-1276.2,0.00065999,120]
[343065849,1732321843816,-1276.2,0.00065999,120]
[343065850,1732321843825,-1276.2,0.00065999,120]
[343065851,1732321843834,-1276.2,0.00065999,120]
[343065852,1732321843845,-1276.2,0.00065999,120]
[343065853,1732321843856,-1276.2,0.00065999,120]
[343065854,1732321843865,-1276.2,0.00065999,120]
[343065855,1732321843874,-1276.2,0.00065999,120]
[343065856,1732321843883,-1276.2,0.00065999,120]
[343065858,1732321843893,-1276.2,0.00065999,120]
[343065860,1732321843903,-1276.2,0.00065999,120]
[343065861,1732321843913,-1276.2,0.00065999,120]
[343065863,1732321843923,-1233.24,0.00065999,120]
[343065865,1732321843931,-1276.2,0.00065999,120]
[343065867,1732321843941,-1276.2,0.00065999,120]
[343065869,1732321843949,-1233.24,0.00065999,120]
[343065871,1732321843958,-1276.2,0.00065999,120]
[343065873,1732321843967,-1233.24,0.00065999,120]
[343065875,1732321843976,-1276.2,0.00065999,120]
[343065877,1732321843985,-1233.24,0.00065999,120]
[343065879,1732321843994,-1276.31927937,0.00065999,120]
[343065881,1732321844004,-1233.24,0.00065999,120]
[343065883,1732321844013,-1233.24,0.00065999,120]
[343065885,1732321844022,-1233.24,0.00065999,120]
[343065887,1732321844031,-1233.24,0.00065999,120]
[343065889,1732321844040,-1233.24,0.00065999,120]
[343065891,1732321844050,-1233.24,0.00065999,120]
[343065893,1732321844059,-1233.24,0.00065999,120]
[343065895,1732321844069,-1233.24,0.00065999,120]
[343065896,1732321844078,-1233.24,0.00065999,120]
[343065897,1732321844087,-1233.24,0.00065999,120]
[343065898,1732321844098,-1233.24,0.00065999,120]
[343065899,1732321844107,-1233.24,0.00065999,120]
[343065900,1732321844117,-1233.24,0.00065999,120]
[343065901,1732321844126,-1233.24,0.00065999,120]
[343065902,1732321844135,-1233.24,0.00065999,120]
[343065903,1732321844144,-1233.24,0.00065999,120]
[343065904,1732321844153,-1233.24,0.00065999,120]
[343065905,1732321844163,-1233.40789111,0.00065999,120]
[343065906,1732321844172,-1452.36,0.00065999,120]
[343065907,1732321844181,-1452.36,0.00065999,120]
[343065908,1732321844191,-1452.36,0.00065999,120]
[343065909,1732321844199,-1452.36,0.00065999,120]
[343065910,1732321844208,-1452.36,0.00065999,120]
[343065911,1732321844217,-1452.36,0.00065999,120]
[343065912,1732321844227,-1452.36,0.00065999,120]
[343065913,1732321844236,-1452.36,0.00065999,120]
[343065914,1732321844246,-1452.36,0.00065999,120]
[343065915,1732321844255,-1452.36,0.00065999,120]
[343065916,1732321844264,-1452.36,0.00065999,120]
[343065917,1732321844274,-1452.36,0.00065999,120]
[343065918,1732321844283,-1452.36,0.00065999,120]
[343065919,1732321844292,-1452.36,0.00065999,120]
[343065920,1732321844302,-1452.36,0.00065999,120]
[343065921,1732321844311,-1452.36,0.00065999,120]
[343065922,1732321844320,-1452.36,0.00065999,120]
[343065923,1732321844330,-1452.36,0.00065999,120]
[343065924,1732321844339,-1452.36,0.00065999,120]
[343065925,1732321844350,-1452.36,0.00065999,120]
[343065926,1732321844359,-1452.36,0.00065999,120]
[343065927,1732321844368,-20776620.60290801,0.00066,30]
[343065968,1732321849825,-8671.53480595,0.00066,30]
[343065969,1732321849842,-7991.83048059,0.00066,30]
[343065970,1732321850025,-1216.48218781,0.00059999,120]
[343065971,1732321850037,-370.57781219,0.00059999,120]
[343065972,1732321850046,-79.45926081,0.00059999,120]
[343065973,1732321850058,-661.06163172,0.00059999,120]
[343065974,1732321850577,-636.45910747,0.00059999,120]
[343065975,1732321850587,-986.78089253,0.000659,2]
[343065976,1732321850623,-1376.98,0.00065318,120]
[343065977,1732321850632,-630.56619974,0.000659,2]
[343065978,1732321850643,-2946.12673374,0.000659,2]
[343065979,1732321850652,-1452.49,0.00065999,120]
[343065980,1732321850662,-1587.06,0.00065999,120]
[343065981,1732321850671,-1587.06,0.00065999,120]
[343065982,1732321850681,-1587.06,0.00065999,120]
[343065983,1732321850691,-688.28566058,0.00065999,120]
[343065984,1732321850702,-898.77433942,0.00065999,120]
[343065985,1732321850711,-1587.06,0.00065999,120]
[343065986,1732321850721,-599.28328106,0.00065999,120]
[343065987,1732321850732,-987.77671894,0.00065999,120]
[343065988,1732321850742,-1587.06,0.00065999,120]
[343065989,1732321850751,-1504.68598106,0.00065999,120]
[343065990,1732321850763,-82.37401894,0.00065999,120]
[343065991,1732321850773,-1587.06,0.00065999,120]
[343065992,1732321850782,-1587.06,0.00065999,120]
[343065993,1732321850791,-1587.06,0.00065999,120]
[343065994,1732321850801,-1016.43247871,0.00065999,120]
[343065995,1732321850852,-360.54752129,0.00065999,120]
[343065996,1732321850861,-2957.77188869,0.00066,30]
[343065997,1732321850872,-102172.74878125,0.00066,30]
[343065998,1732321850884,-16203.78408197,0.00066,30]
[343065999,1732321850895,-15567.0,0.00066,30]
[343066000,1732321850920,-0.997967,0.00065999,120]
[343066001,1732321850944,-338.182,0.00065999,120]
[343066002,1732321850958,-1037.800033,0.00065999,120]
[343066003,1732321850967,-675.95546704,0.00065999,120]
[343066004,1732321850979,-440.62500018,0.00065999,120]
[343066005,1732321850990,-470.47953278,0.00065999,120]
[343066006,1732321851000,-1188.76947917,0.00066,30]
[343066007,1732321851013,-23623.426476,0.00066,30]
[343066008,1732321855375,-7682.58835,0.00066,30]
[343066009,1732321855387,-11206.45468264,0.00066,30]
[343066010,1732321855398,-156838.896,0.00066,30]
[343066011,1732321855491,-483.96449611,0.00066,30]
[343066012,1732321855505,-1265.5,0.00066,30]
[343066013,1732321855516,-1781.6598,0.00066,30]
[343066014,1732321855527,-380.185245,0.00066,30]
[343066015,1732321855538,-6480.08437584,0.00066,30]
[343066016,1732321855549,-513.17499972,0.00066,30]
[343066017,1732321855559,-580.77214175,0.00066,30]
[343066018,1732321855574,-474.75,0.00065999,120]
[343066019,1732321855592,-1112.31,0.00065999,120]
[343066020,1732321855601,-528.81088,0.00065999,120]
[343066021,1732321855617,-848.16912,0.00065999,120]
[343066022,1732321855626,-725.63088,0.00066,30]
[343066023,1732321855637,-2162.9784,0.00066,30]
[343066024,1732321855715,-81.19633971,0.00066,30]
[343066025,1732321855726,-38867.78269548,0.00066,30]
[343066026,1732321855737,-3096.99518458,0.00066,30]
[343066027,1732321855748,-14610.57639155,0.00066,30]
[343066028,1732321855759,-21385.5911,0.00066,30]
[343066029,1732321855774,-328.99589541,0.00065999,120]
[343066030,1732321855785,-805.03729541,0.00065999,120]
[343066031,1732321855796,-453.02680918,0.00065999,120]
[343066032,1732321855806,-87976.25270635,0.00066,30]
[343066033,1732321855834,-930.8364645,0.00059999,120]
[343066034,1732321855845,-718.8835355,0.00059999,120]
[343066035,1732321855855,-1376.98,0.00065999,120]
[343066036,1732321855867,-2918.9364645,0.00066,30]
[343066037,1732321856516,-1244.98155844,0.00066,30]
[343066038,1732321856861,-263.372,0.00057,120]
[343066039,1732321856871,-158.674,0.00057,120]
[343066040,1732321856880,-263.372,0.00059392,120]
[343066041,1732321856890,-500.0,0.00059999,120]
[343066042,1732321856900,-263.372,0.00061784,120]
[343066043,1732321856909,-263.372,0.00064176,120]
[343066044,1732321856919,-150.0,0.000648,60]
[343066045,1732321856928,-150.0,0.000648,60]
[343066046,1732321856938,-120.638,0.000648,60]
[343066047,1732321856967,-178.0,0.00064,120]
[343066048,1732321856977,-810.032,0.000648,60]
[343066049,1732321856986,-362.72,0.000648,60]
[343066050,1732321856996,-150.0,0.000648,60]
[343066051,1732321857006,-150.0,0.000648,60]
[343066052,1732321857016,-433.58,0.000648,60]
[343066053,1732321857026,-150.0,0.000648,60]
[343066054,1732321857035,-362.72,0.000648,60]
[343066055,1732321857044,-150.0,0.000648,60]
[343066056,1732321857053,-433.48,0.000648,60]
[343066057,1732321857062,-150.0,0.000648,60]
[343066058,1732321857071,-150.0,0.000648,60]
[343066059,1732321857080,-150.0,0.000648,60]
[343066060,1732321857089,-433.58,0.000648,60]
[343066061,1732321857098,-362.72,0.000648,60]
[343066062,1732321857110,-150.0,0.000648,60]
[343066063,1732321857119,-150.0,0.000648,60]
[343066064,1732321857128,-150.0,0.000648,60]
[343066065,1732321857137,-433.58,0.000648,60]
[343066066,1732321857147,-74.348,0.00065299,120]
[343066067,1732321857159,-1575.372,0.00065299,120]
[343066068,1732321857167,-1649.72,0.00065688,120]
[343066069,1732321857177,-1649.72,0.00065688,120]
[343066070,1732321857187,-409.36,0.0006599,30]
[343066071,1732321857196,-1649.72,0.00065998,120]
[343066072,1732321857206,-383.44557279,0.00065998,120]
[343066073,1732321857217,-1266.27442721,0.00065998,120]
[343066074,1732321857227,-1587.06,0.00065999,120]
[343066075,1732321857237,-1376.98,0.00065999,120]
[343066076,1732321857246,-1587.06,0.00065999,120]
[343066077,1732321857255,-1376.98,0.00065999,120]
[343066078,1732321857264,-1587.06,0.00065999,120]
[343066079,1732321857273,-1376.98,0.00065999,120]
[343066080,1732321857283,-1587.06,0.00065999,120]
[343066081,1732321857291,-1376.98,0.00065999,120]
[343066082,1732321857301,-1587.06,0.00065999,120]
[343066083,1732321857310,-1376.98,0.00065999,120]
[343066084,1732321857319,-1587.06,0.00065999,120]
[343066085,1732321857328,-210.0,0.00065999,2]
[343066086,1732321857338,-878.18405279,0.00065999,120]
[343066087,1732321857523,-68.45534252,0.00065999,120]
[343066088,1732321857537,-430.34060469,0.00065999,120]
[343066089,1732321857547,-150.09939681,0.00065999,120]
[343066090,1732321857558,-251.87304369,0.00065999,120]
[343066091,1732321858093,-412.29446111,0.00065999,120]
[343066092,1732321858105,-792.14122655,0.00065999,120]
[343066093,1732321858129,-43.31187184,0.00065999,120]
[343066094,1732321858139,-800.26515488,0.00065999,120]
[343066095,1732321858152,-300.52495403,0.00065999,120]
[343066096,1732321924699,732.0,0.00054795,120]
[343066097,1732321925139,150.0,0.00054795,120]
[343066098,1732321925962,150.0,0.00054695,120]
[343066099,1732321928729,500.0,0.00054795,120]
[343066100,1732321932241,160.9746,0.00039888,7]
[343066101,1732321932693,-263.372,0.00056593,120]
[343066102,1732321932716,-158.674,0.00056593,120]
[343066103,1732321932738,-263.372,0.00059072,120]
[343066104,1732321932758,-220.0,0.00059689,120]
[343066105,1732321932779,-658.6561,0.00059689,60]
[343066106,1732321932799,-332.75,0.00059778,10]
[343066107,1732321932821,-700.0,0.00059787,15]
[343066108,1732321932846,-350.0,0.00059787,90]
[343066109,1732321932867,-500.0,0.00059788,31]
[343066110,1732321932889,-500.0,0.00059788,31]
[343066111,1732321932913,-500.0,0.00059788,31]
[343066112,1732321932936,-500.0,0.00059788,31]
[343066113,1732321932957,-500.0,0.00059788,31]
[343066114,1732321932978,-500.0,0.00059788,31]
[343066115,1732321932999,-500.0,0.00059788,31]
[343066116,1732321933020,-500.0,0.00059788,31]
[343066117,1732321933041,-500.0,0.00059788,31]
[343066118,1732321933062,-500.0,0.00059788,31]
[343066119,1732321933083,-500.0,0.00059788,31]
[343066120,1732321933104,-500.0,0.00059788,31]
[343066121,1732321933126,-500.0,0.00059788,31]
[343066122,1732321933148,-500.0,0.00059788,31]
[343066123,1732321933169,-500.0,0.00059788,31]
[343066124,1732321933191,-500.0,0.00059788,31]
[343066125,1732321933213,-500.0,0.00059788,31]
[343066126,1732321933234,-500.0,0.00059788,31]
[343066127,1732321933261,-500.0,0.00059788,31]
[343066128,1732321933282,-500.0,0.00059788,31]
[343066129,1732321933304,-500.0,0.00059788,31]
[343066130,1732321933324,-500.0,0.00059788,31]
[343066131,1732321933347,-500.0,0.00059788,31]
[343066132,1732321933369,-560.85937332,0.00059788,31]
[343066133,1732321933391,-500.0,0.00059788,31]
[343066134,1732321933413,-500.0,0.00059788,31]
[343066135,1732321933436,-500.0,0.00059788,31]
[343066136,1732321933458,-500.0,0.00059788,31]
[343066137,1732321933480,-500.0,0.00059788,31]
[343066138,1732321933501,-500.0,0.00059788,120]
[343066139,1732321933523,-500.0,0.00059788,120]
[343066140,1732321933543,-500.0,0.00059788,120]
[343066141,1732321933564,-500.0,0.00059788,120]
[343066142,1732321933584,-500.0,0.00059788,120]
[343066143,1732321933605,-577.22400772,0.00059788,120]
[343066144,1732321933626,-500.0,0.00059788,120]
[343066145,1732321933647,-500.0,0.00059788,120]
[343066146,1732321933668,-500.0,0.00059788,120]
[343066147,1732321933694,-500.0,0.00059788,120]
[343066148,1732321933715,-500.0,0.00059788,120]
[343066149,1732321933736,-500.0,0.00059788,120]
[343066150,1732321933756,-500.0,0.00059788,120]
[343066151,1732321933777,-500.0,0.00059788,120]
[343066152,1732321933799,-500.0,0.00059788,120]
[343066153,1732321933819,-500.0,0.00059788,120]
[343066154,1732321933848,-500.0,0.00059788,120]
[343066155,1732321933870,-500.0,0.00059788,120]
[343066156,1732321933893,-500.0,0.00059788,120]
[343066157,1732321933914,-500.0,0.00059788,120]
[343066158,1732321933940,-426.87629271,0.00059788,120]
[343066159,1732321934064,-500.0,0.00059788,120]
[343066160,1732321934086,-500.0,0.00059788,31]
[343066161,1732321934108,-500.0,0.00059788,31]
[343066162,1732321934130,-500.0,0.00059788,31]
[343066163,1732321934151,-500.0,0.00059788,31]
[343066164,1732321934176,-500.0,0.00059788,31]
[343066165,1732321934198,-500.0,0.00059788,31]
[343066166,1732321934221,-500.0,0.00059788,31]
[343066167,1732321934244,-500.0,0.00059788,31]
[343066168,1732321934265,-500.0,0.00059788,31]
[343066169,1732321934288,-500.0,0.00059788,31]
[343066170,1732321934310,-500.0,0.00059788,31]
[343066171,1732321934331,-500.0,0.00059788,31]
[343066172,1732321934353,-500.0,0.00059788,31]
[343066173,1732321934377,-500.0,0.00059788,31]
[343066174,1732321934400,-500.0,0.00059788,31]
[343066175,1732321934423,-500.0,0.00059788,31]
[343066176,1732321934444,-500.0,0.00059788,31]
[343066177,1732321934468,-500.0,0.00059788,31]
[343066178,1732321934490,-500.0,0.00059788,31]
[343066179,1732321934513,-500.0,0.00059788,31]
[343066180,1732321934535,-500.0,0.00059788,31]
[343066181,1732321934556,-500.0,0.00059788,31]
[343066182,1732321934578,-500.0,0.00059788,31]
[343066183,1732321934600,-500.0,0.00059788,31]
[343066184,1732321934628,-500.0,0.00059788,31]
[343066185,1732321934652,-500.0,0.00059788,31]
[343066186,1732321934679,-500.0,0.00059788,31]
[343066187,1732321934702,-500.0,0.00059788,31]
[343066188,1732321934724,-500.0,0.00059788,31]
[343066189,1732321934747,-500.0,0.00059788,31]
[343066190,1732321934770,-252.80478662,0.00059788,31]
[343066191,1732321934792,-500.0,0.00059788,31]
[343066192,1732321934814,-500.0,0.00059788,31]
[343066193,1732321934840,-500.0,0.00059788,31]
[343066194,1732321934862,-500.0,0.00059788,31]
[343066195,1732321934885,-500.0,0.00059788,31]
[343066196,1732321934907,-500.0,0.00059788,31]
[343066197,1732321934932,-500.0,0.00059788,31]
[343066198,1732321934954,-500.0,0.00059788,31]
[343066199,1732321934976,-500.0,0.00059788,31]
[343066200,1732321934999,-500.0,0.00059788,31]
[343066201,1732321935023,-500.0,0.00059788,31]
[343066202,1732321935046,-500.0,0.00059788,31]
[343066203,1732321935073,-248.25190937,0.00059788,31]
[343066204,1732321940937,158.0,0.00053158,30]
[343066205,1732321961026,150.0,0.00053158,30]
[343066206,1732321967666,-500.0,0.00059788,31]
[343066207,1732321967689,-162.32600937,0.000598,120]
[343066208,1732321967715,-1603.59,0.00059999,120]
[343066209,1732321967738,-1340.09,0.00059999,120]
[343066210,1732321967760,-500.0,0.00059999,120]
[343066211,1732321967781,-500.0,0.00059999,120]
[343066212,1732321967802,-500.0,0.00059999,120]
[343066213,1732321967824,-500.0,0.00059999,120]
[343066214,1732321967850,-500.0,0.00059999,120]
[343066215,1732321967872,-500.0,0.00059999,120]
[343066216,1732321967895,-500.0,0.00059999,120]
[343066217,1732321967917,-1553.18,0.00059999,120]
[343066218,1732321967940,-500.0,0.00059999,120]
[343066219,1732321967964,-500.0,0.00059999,120]
[343066220,1732321967984,-379.37,0.00059999,120]
[343066221,1732321968006,-1075.08,0.00059999,120]
[343066222,1732321968028,-500.0,0.00059999,120]
[343066223,1732321968049,-500.0,0.00059999,120]
[343066224,1732321968070,-1621.14,0.00059999,120]
[343066225,1732321968095,-500.0,0.00059999,120]
[343066226,1732321968118,-500.0,0.00059999,120]
[343066227,1732321968140,-500.0,0.00059999,120]
[343066228,1732321968162,-500.0,0.00059999,120]
[343066229,1732321968183,-436.49346126,0.00059999,120]
[343066230,1732321968207,-1447.51,0.00059999,120]
[343066231,1732321968228,-1261.89,0.00059999,120]
[343066232,1732321968251,-500.0,0.00059999,120]
[343066233,1732321968271,-500.0,0.00059999,120]
[343066234,1732321968295,-500.0,0.00059999,120]
[343066235,1732321968316,-500.0,0.00059999,120]
[343066236,1732321968339,-500.0,0.00059999,120]
[343066237,1732321968364,-500.0,0.00059999,120]
[343066238,1732321968402,-500.0,0.00059999,120]
[343066239,1732321968449,-500.0,0.00059999,120]
[343066240,1732321968493,-500.0,0.00059999,120]
[343066241,1732321968531,-462.08,0.00059999,120]
[343066242,1732321968562,-500.0,0.00059999,120]
[343066243,1732321968599,-500.0,0.00059999,120]
[343066244,1732321968635,-500.0,0.00059999,120]
[343066245,1732321968673,-327.5749312,0.00059999,120]
[343066246,1732321968707,-861.07,0.00059999,120]
[343066247,1732321968745,-500.0,0.00059999,21]
[343066248,1732321968779,-500.0,0.00059999,120]
[343066249,1732321968812,-500.0,0.00059999,120]
[343066250,1732321968845,-500.0,0.00059999,120]
[343066251,1732321968875,-500.0,0.00059999,120]
[343066252,1732321968908,-500.0,0.00059999,120]
[343066253,1732321968934,-500.0,0.00059999,120]
[343066254,1732321968973,-500.0,0.00059999,120]
[343066255,1732321969001,-500.0,0.00059999,120]
[343066256,1732321969029,-500.0,0.00059999,120]
[343066257,1732321969062,-500.0,0.00059999,120]
[343066258,1732321969092,-500.0,0.00059999,120]
[343066259,1732321969120,-500.0,0.00059999,120]
[343066260,1732321969147,-500.0,0.00059999,120]
[343066261,1732321969177,-500.0,0.00059999,120]
[343066262,1732321969206,-500.0,0.00059999,120]
[343066263,1732321969235,-1475.24,0.00059999,120]
[343066264,1732321969264,-500.0,0.00059999,120]
[343066265,1732321969292,-1388.33,0.00059999,120]
[343066266,1732321969321,-221.67,0.00059999,120]
[343066267,1732321969349,-500.0,0.00059999,120]
[343066268,1732321969378,-500.0,0.00059999,120]
[343066269,1732321969407,-500.0,0.00059999,120]
[343066270,1732321969436,-500.0,0.00059999,120]
[343066271,1732321969467,-500.0,0.00059999,120]
[343066272,1732321969496,-500.0,0.00059999,120]
[343066273,1732321969525,-500.0,0.00059999,120]
[343066274,1732321969669,-500.0,0.00059999,120]
[343066275,1732321969709,-500.0,0.00059999,120]
[343066276,1732321969731,-500.0,0.00059999,120]
[343066277,1732321969754,-269.498191,0.00059999,120]
[343066278,1732321969776,-500.0,0.00059999,120]
[343066279,1732321969798,-500.0,0.00059999,120]
[343066280,1732321969820,-500.0,0.00059999,120]
[343066281,1732321969842,-500.0,0.00059999,120]
[343066282,1732321969867,-337.67399063,0.00059999,120]
[343066283,1732322011008,153.23,0.00041096,2]
[343066284,1732322011216,153.23,0.00046736,2]
[343066285,1732322011447,153.23,0.00052377,120]
[343066287,1732322015605,1000000.0,0.00053018,20]
[343066288,1732322017326,500.0,0.00024932,2]
[343066289,1732322017720,500.0,0.00024932,2]
[343066290,1732322018230,500.0,0.00024932,2]
[343066291,1732322025391,200.0,0.00024658,2]
[343066292,1732322025913,200.0,0.00024658,2]
[343066293,1732322026333,200.0,0.00024658,2]
[343066294,1732322049955,1000000.0,0.00053018,29]
[343066295,1732322055292,786183.96362191,0.00053018,29]
[343066296,1732322055320,213816.03637809,0.00053018,29]
[343066297,1732322066104,1000000.0,0.00053018,29]
[343066298,1732322069239,1000002.0,0.00053018,29]
[343066299,1732322071581,1000003.0,0.00053018,29]
[343066300,1732322074626,1000004.0,0.00053018,29]
[343066301,1732322077259,1000005.0,0.00053018,29]
[343066302,1732322079873,1000006.0,0.00053018,29]
[343066303,1732322082246,1000007.0,0.00053018,29]
[343066304,1732322085175,1000008.0,0.00053018,29]
[343066305,1732322087616,1000009.0,0.00053018,29]
[343066307,1732322092273,1000010.0,0.00053018,29]
[343066308,1732322095359,1000011.0,0.00053018,29]
[343066309,1732322097732,1000012.0,0.00053018,29]
[343066310,1732322099676,250.0,0.00031,2]
[343066311,1732322100079,1000013.0,0.00053018,29]
[343066312,1732322101179,300.0,0.00033,2]
[343066313,1732322102614,1000014.0,0.00053018,29]
[343066314,1732322102915,350.0,0.00035,2]
[343066315,1732322103137,200.0,0.00051,120]
[343066316,1732322103194,200.0,0.000515,120]
[343066317,1732322103257,400.0,0.00052,120]
[343066318,1732322104660,400.0,0.00037,2]
[343066319,1732322105087,1000015.0,0.00053018,29]
[343066320,1732322106202,450.0,0.00039,2]
[343066321,1732322107426,500.0,0.00041,2]
[343066322,1732322108175,1000016.0,0.00053018,29]
[343066323,1732322108922,550.0,0.00043,2]
[343066324,1732322110416,600.0,0.00045,2]
[343066325,1732322110859,1000017.0,0.00053018,29]
[343066327,1732322111914,650.0,0.00047,2]
[343066328,1732322113203,700.0,0.00049,2]
[343066329,1732322114393,750.0,0.00051,2]
[343066331,1732322115658,800.0,0.00053,2]
[343066333,1732322117160,850.0,0.00055,2]
[343066334,1732322123772,530.178439,0.000524,120]
[343066335,1732322127509,1000018.0,0.00053018,29]
[343066336,1732322140628,1000019.0,0.00053018,29]
[343066337,1732322146129,500.0,0.00051232,120]
[343066338,1732322213047,175.05,0.00041427,2]
[343066339,1732322292257,1000.0,0.00055,2]
[343066340,1732322341401,643.0,0.00053017,15]
[343066341,1732322405164,-1000.0,0.00053172,120]
[343066342,1732322405198,-1000.0,0.00053172,120]
[343066343,1732322405231,-1000.0,0.00053172,120]
[343066344,1732322405262,-1000.0,0.00053172,120]
[343066345,1732322405294,-316.15304355,0.00053172,120]
[343066346,1732322412868,1000020.0,0.00053172,29]
[343066347,1732322417937,1000021.0,0.00053172,29]
[343066348,1732322431109,990000.0,0.00053172,29]
[343066349,1732322438810,150.0,0.00027,120]
[343066350,1732322439045,247.99545,0.000323,120]
[343066351,1732322452918,-470.85021245,0.00056,120]
[343066352,1732322452944,-479.14978755,0.00058,120]
[343066353,1732322456402,182.84,0.00041096,2]
[343066354,1732322456773,182.84,0.00047489,2]
[343066355,1732322457143,182.84,0.00053881,2]
[343066356,1732322459554,-150.0,0.00053172,2]
[343066357,1732322510127,500.0,0.0005,2]
[343066358,1732322529213,500.0,0.00055,2]
[343066359,1732322619595,500.0,0.00024932,2]
[343066360,1732322620003,500.0,0.00024932,2]
[343066361,1732322620404,500.0,0.00024932,2]
[343066363,1732322703687,150.0,0.00034548,10]
[343066364,1732322704843,150.0,0.00045589,10]
[343066365,1732322757471,1000.0,0.00045,120]
[343066366,1732322774960,1000.95789764,0.00045,120]
[343066367,1732322777044,164.45,0.00041096,2]
[343066368,1732322777262,164.45,0.00053082,120]
[343066370,1732322809799,164.18,0.00047934,2]